bitfinex/quotes_ETHUSD_20250220
["timestamp","ask_amount","ask_price","bid_price","bid_amount"]
[1740051741810,6.64439,2744.0,2743.9,0.12566101]
[1740051742306,3.64445,2743.9,2743.7,0.7793]
[1740051742854,6.64431,2744.0,2743.7,0.7793]
[1740051743810,3.64445,2743.9,2743.7,0.7793]
[1740051744864,3.64445,2743.9,2743.8,0.12566101]
[1740051745288,3.64445,2743.9,2743.7,0.7793]
[1740051745463,3.64445,2743.9,2743.8,0.12566101]
[1740051745675,3.0,2744.0,2743.7,1.247526]
[1740051745996,6.64433,2744.0,2743.8,0.12566101]
[1740051746202,3.64444,2743.9,2743.8,0.12566101]
[1740051746401,3.64444,2743.9,2743.7,1.247526]
[1740051746704,3.64444,2743.9,2743.8,0.12566101]
[1740051747103,3.64444,2743.9,2743.7,1.247526]
[1740051747267,3.64444,2743.9,2743.8,0.12566101]
[1740051747469,3.64444,2743.9,2743.7,1.247526]
[1740051747795,3.64444,2743.9,2743.8,0.12566101]
[1740051748002,3.64444,2743.9,2743.7,1.247526]
[1740051748402,3.64444,2743.9,2743.8,0.12566101]
[1740051748604,3.64444,2743.9,2743.7,1.247526]
[1740051748906,3.64444,2743.9,2743.8,0.12566101]
[1740051749198,3.64444,2743.9,2743.7,1.247526]
[1740051749568,3.64444,2743.9,2743.8,0.12566101]
[1740051749775,3.64444,2743.9,2743.7,0.7793]
[1740051750202,3.0,2744.0,2743.8,0.12545898]
[1740051750369,6.64439,2744.0,2743.8,0.71601901]
[1740051750563,6.64439,2744.0,2743.9,0.12545898]
[1740051751471,3.0,2744.0,2743.9,0.12545898]
[1740051751806,3.6441,2744.2,2743.9,0.12545898]
[1740051752006,3.64418,2744.1,2744.0,0.7573]
[1740051752513,3.64418,2744.1,2744.0,0.88275898]
[1740051753583,3.64418,2744.1,2744.0,0.12545898]
[1740051753786,3.64418,2744.1,2743.8,1.53411901]
[1740051754105,3.64418,2744.1,2743.9,0.12545898]
[1740051754322,3.64405,2744.2,2743.9,0.12545898]
[1740051755070,3.64419,2744.1,2743.9,0.12545898]
[1740051760321,3.64402,2744.3,2743.9,0.12545898]
[1740051760322,3.64412,2744.2,2743.9,0.12545898]
[1740051760524,3.64412,2744.2,2743.9,0.65952594]
[1740051760826,3.6442,2744.1,2743.9,0.65952594]
[1740051762279,6.64379,2744.4,2744.0,0.8239]
[1740051762474,3.64404,2744.3,2744.0,0.8239]
[1740051762912,3.64404,2744.3,2744.0,0.94919583]
[1740051763099,3.64404,2744.3,2744.0,1.53357401]
[1740051765415,6.64379,2744.4,2744.0,1.53357401]
[1740051765579,3.64395,2744.3,2744.0,1.53357401]
[1740051770419,6.64379,2744.4,2744.0,1.53357401]
[1740051770721,3.64411,2744.2,2744.0,1.53357401]
[1740051770897,3.64411,2744.2,2744.1,0.37268642]
[1740051771389,3.64411,2744.2,2744.1,0.49798225]
[1740051774320,4.51062633,2744.2,2744.1,0.12529583]
[1740051774686,3.64444,2743.9,2743.8,0.71601901]
[1740051774907,3.64484,2743.6,2743.5,5.32]
[1740051775110,3.64484,2743.6,2743.5,0.258]
[1740051775522,3.64484,2743.6,2743.5,0.99428137]
[1740051775892,3.64479,2743.7,2743.5,0.99428137]
[1740051776291,3.64479,2743.7,2743.5,1.33763183]
[1740051777288,3.64458,2743.8,2743.5,1.33763183]
[1740051777711,3.64475,2743.7,2743.5,1.33763183]
[1740051778213,3.64484,2743.6,2743.5,1.33763183]
[1740051780327,3.64479,2743.7,2743.5,1.33763183]
[1740051780489,3.64484,2743.6,2743.5,1.33763183]
[1740051782656,3.64472,2743.7,2743.5,1.33763183]
[1740051784347,3.64459,2743.8,2743.5,1.33763183]
[1740051784507,3.64483,2743.7,2743.5,0.99428137]
[1740051785136,3.64484,2743.6,2743.5,0.99428137]
[1740051785340,3.64484,2743.6,2743.5,0.258]
[1740051786942,3.64497,2743.5,2743.4,0.73919992]
[1740051787127,3.64497,2743.5,2743.4,0.99719992]
[1740051787314,3.64497,2743.5,2743.4,0.73919992]
[1740051787542,3.64497,2743.5,2743.4,0.99719992]
[1740051789921,3.64497,2743.5,2743.4,1.11819182]
[1740051790241,3.64497,2743.5,2743.4,0.3789919]
[1740051792916,6.64497,2743.5,2743.4,0.3789919]
[1740051793113,6.64497,2743.5,2743.4,0.258]
[1740051793406,6.64497,2743.5,2743.4,0.3789919]
[1740051809448,6.68188633,2743.5,2743.4,0.3789919]
[1740051810377,6.68188633,2743.5,2743.4,0.258]
[1740051811478,6.68188633,2743.5,2743.4,0.37906183]
[1740051817981,6.64497,2743.5,2743.4,0.37906183]
[1740051818169,6.68188633,2743.5,2743.4,0.37906183]
[1740051818369,6.68188633,2743.5,2743.4,0.12106183]
[1740051818370,8.3411096,2743.5,2743.4,0.12106183]
[1740051818565,3.64572,2743.0,2742.9,0.72753682]
[1740051818770,3.64572,2743.0,2742.9,0.258]
[1740051818971,3.64572,2743.0,2742.9,0.37911622]
[1740051846500,3.64559,2743.1,2742.9,1.16441622]
[1740051846688,3.64564,2743.0,2742.9,1.16441622]
[1740051847316,3.64559,2743.1,2742.9,1.16441622]
[1740051847529,3.64564,2743.0,2742.9,1.16441622]
[1740051847823,5.24,2743.4,2743.2,0.7853]
[1740051848122,5.24,2743.4,2743.3,0.12147368]
[1740051849093,8.88511,2743.4,2743.3,0.12147368]
[1740051851190,5.24,2743.4,2742.9,0.258]
[1740051851396,3.64559,2743.1,2742.9,0.258]
[1740051851732,3.64559,2743.1,2743.0,0.12147368]
[1740051852218,4.41629,2743.1,2743.0,0.12147368]
[1740051852528,5.38838033,2743.1,2742.7,0.71740661]
[1740051852731,3.64577,2742.9,2742.8,0.258]
[1740051855634,4.41629,2743.1,2742.8,0.258]
[1740051855936,3.64572,2743.0,2742.8,0.258]
[1740051858123,3.64564,2743.0,2742.8,0.258]
[1740051860739,3.64577,2742.9,2742.8,0.258]
[1740051863143,3.64577,2742.9,2742.7,0.71740661]
[1740051863342,3.64577,2742.9,2742.8,0.258]
[1740051863644,3.64565,2743.0,2742.8,0.258]
[1740051863838,4.41629,2743.1,2742.8,0.258]
[1740051864046,3.64564,2743.0,2742.8,0.258]
[1740051864843,3.64564,2743.0,2742.9,0.12157471]
[1740051873129,3.64564,2743.0,2742.9,0.37957471]
[1740051873331,3.64564,2743.0,2742.9,0.258]
[1740051873556,3.64564,2743.0,2742.9,0.3795747]
[1740051887526,3.64564,2743.0,2742.9,1.1324747]
[1740051888358,5.24,2743.4,2742.9,1.31746283]
[1740051888560,3.64531,2743.3,2742.9,1.31746283]
[1740051889066,3.0,2743.3,2742.9,1.31746283]
[1740051889265,3.64539,2743.2,2742.9,1.31746283]
[1740051890067,3.0,2743.3,2742.9,1.31746283]
[1740051890255,6.64525,2743.3,2742.9,1.31746283]
[1740051890566,6.64525,2743.3,2743.0,0.49998179]
[1740051890731,3.64525,2743.3,2743.0,0.49998179]
[1740051890933,3.64525,2743.3,2743.1,0.11714892]
[1740051891354,3.64537,2743.2,2743.1,0.11714892]
[1740051891738,3.64551,2743.1,2742.9,1.0109]
[1740051892061,3.03691633,2743.3,2742.9,0.258]
[1740051892368,3.64586,2742.9,2742.7,0.8117]
[1740051892534,3.64586,2742.9,2742.8,0.258]
[1740051894792,3.64586,2742.9,2742.8,0.37507898]
[1740051897986,3.64586,2742.9,2742.8,0.11707898]
[1740051898162,3.64586,2742.9,2742.8,0.37507898]
[1740051898347,3.64586,2742.9,2742.8,0.258]
[1740051898551,3.64586,2742.9,2742.8,0.37517225]
[1740051903653,3.64564,2743.0,2742.8,0.37517225]
[1740051904073,3.64577,2742.9,2742.8,0.37517225]
[1740051910681,4.45376,2743.0,2742.8,0.37517225]
[1740051910682,0.8081,2743.0,2742.8,0.37517225]
[1740051910883,3.64577,2742.9,2742.5,0.7587]
[1740051911088,3.646,2742.8,2742.6,0.258]
[1740051911410,3.68295633,2742.7,2742.6,0.11720333]
[1740051911567,14.37616327,2742.7,2742.6,0.11720333]
[1740051911898,14.37616327,2742.7,2742.6,0.258]
[1740051912198,3.64666,2742.3,2742.0,8.91804044]
[1740051912374,10.73012327,2742.7,2742.0,8.91804044]
[1740051912375,3.64684,2742.1,2742.0,8.191]
[1740051912582,3.64684,2742.1,2742.0,8.449]
[1740051913518,4.47761,2742.2,2742.0,8.449]
[1740051913707,3.64684,2742.1,2742.0,8.449]
[1740051914637,3.64666,2742.3,2742.0,8.449]
[1740051914950,6.0176,2743.1,2742.9,3.64572]
[1740051915092,6.0176,2743.1,2743.0,0.258]
[1740051915290,5.24,2743.1,2743.0,0.258]
[1740051915839,8.88551,2743.1,2743.0,0.258]
[1740051917699,4.42273,2743.4,2743.0,0.258]
[1740051918250,3.6453,2743.3,2743.0,0.258]
[1740051918427,3.0,2743.2,2743.0,0.258]
[1740051918742,7.29088,2743.2,2743.0,0.258]
[1740051919101,3.64538,2743.2,2743.0,0.258]
[1740051919496,7.29084,2743.2,2743.0,0.258]
[1740051921056,3.64551,2743.1,2743.0,0.258]
[1740051921267,4.674599,2743.1,2743.0,0.258]
[1740051921743,3.6458,2742.9,2742.6,0.8113]
[1740051922048,3.6458,2742.9,2742.7,0.258]
[1740051924750,3.6458,2742.9,2742.8,0.10932742]
[1740051925049,3.6458,2742.9,2742.7,0.258]
[1740051925252,7.29168,2742.9,2742.8,0.10932742]
[1740051925746,3.6458,2742.9,2742.8,0.10932742]
[1740051925951,3.6458,2742.9,2742.7,0.258]
[1740051926254,3.6458,2742.9,2742.8,0.10932742]
[1740051926613,3.6458,2742.9,2742.8,0.258]
[1740051926854,3.6458,2742.9,2742.8,0.36732742]
[1740051933565,3.6458,2742.9,2742.8,0.10932742]
[1740051933751,3.6458,2742.9,2742.8,0.36732742]
[1740051933942,3.6458,2742.9,2742.8,0.258]
[1740051937068,3.68271633,2742.9,2742.8,0.258]
[1740051937273,3.6458,2742.9,2742.8,0.1093896]
[1740051937475,3.6458,2742.9,2742.8,0.3673896]
[1740051938277,3.6458,2742.9,2742.8,0.1093896]
[1740051938451,3.6458,2742.9,2742.8,0.3673896]
[1740051938975,3.68271633,2742.9,2742.8,0.3673896]
[1740051939336,6.32254353,2742.9,2742.8,0.1093896]
[1740051939676,15.36284353,2742.9,2742.8,0.258]
[1740051939976,7.29279,2742.5,2742.3,0.8115]
[1740051940173,3.64636,2742.5,2742.4,0.258]
[1740051940348,3.64636,2742.5,2742.4,0.3673896]
[1740051941579,3.64618,2742.6,2742.4,0.3673896]
[1740051941742,3.64609,2742.7,2742.4,0.3673896]
[1740051941946,12.68616,2742.9,2742.4,0.92318157]
[1740051941947,5.24,2742.9,2742.4,0.92318157]
[1740051942147,5.24,2742.9,2742.6,0.7794]
[1740051942562,5.24,2742.9,2742.7,0.10949844]
[1740051942918,8.88578,2742.9,2742.7,0.10949844]
[1740051945686,3.64578,2742.9,2742.7,0.10949844]
[1740051946181,3.6459,2742.8,2742.7,0.10949844]
[1740051946383,3.64578,2742.9,2742.7,0.10949844]
[1740051948898,7.29163,2742.9,2742.7,0.10949844]
[1740051949215,7.29166,2742.9,2742.7,0.10949844]
[1740051950215,7.29164,2742.9,2742.7,0.10949844]
[1740051950361,3.64578,2742.9,2742.7,0.10949844]
[1740051950563,3.64578,2742.9,2742.8,0.258]
[1740051953807,3.64578,2742.9,2742.8,0.36752954]
[1740051954566,3.64578,2742.9,2742.8,0.258]
[1740051955712,3.64578,2742.9,2742.8,0.36752954]
[1740051957109,8.88533,2743.3,2742.8,0.36752954]
[1740051957307,3.64551,2743.1,2742.9,0.7998]
[1740051957664,3.64551,2743.1,2743.0,0.10958394]
[1740051958158,3.0,2743.2,2743.0,3.75510394]
[1740051958375,6.0194,2743.6,2743.0,0.59087433]
[1740051958613,0.7794,2743.8,2743.1,0.7998]
[1740051958810,3.64486,2743.6,2743.1,4.44529]
[1740051959019,7.42403,2743.8,2743.1,4.44529]
[1740051959395,0.7794,2743.8,2743.2,0.10929632]
[1740051959717,3.64499,2743.5,2743.2,0.10929632]
[1740051960314,3.64511,2743.4,2743.2,0.56476295]
[1740051960495,3.64499,2743.5,2743.2,0.10929632]
[1740051960668,3.6452,2743.4,2743.2,0.10929632]
[1740051962179,3.6452,2743.4,2743.2,0.84033955]
[1740051963311,3.64485,2743.6,2743.2,0.84033955]
[1740051963464,0.7794,2743.8,2743.2,0.84033955]
[1740051963666,3.645,2743.5,2743.2,0.84033955]
[1740051963901,3.645,2743.5,2743.2,1.36890751]
[1740051966417,3.64514,2743.4,2743.2,1.36890751]
[1740051966713,3.64514,2743.4,2743.2,0.84033955]
[1740051966714,7.29034,2743.4,2743.2,0.84033955]
[1740051966866,3.64514,2743.4,2743.2,0.84033955]
[1740051967264,4.50455633,2743.3,2743.2,0.10929632]
[1740051967511,4.50455633,2743.3,2743.2,0.36729632]
[1740051967815,4.50455633,2743.3,2743.2,0.258]
[1740051968024,4.50455633,2743.3,2743.2,0.36703986]
[1740051968182,5.66221639,2743.3,2743.2,0.36703986]
[1740051968700,5.62530006,2743.3,2743.2,0.36703986]
[1740051968906,3.64524,2743.3,2743.2,0.36703986]
[1740051969333,0.8224,2743.5,2743.2,0.36703986]
[1740051969544,3.55,2743.9,2743.2,0.36703986]
[1740051969545,6.64514,2743.4,2743.2,0.36703986]
[1740051969742,10.29033,2743.4,2743.2,0.36703986]
[1740051970079,3.64524,2743.3,2743.2,0.36703986]
[1740051973585,6.64514,2743.4,2743.2,0.36703986]
[1740051973738,3.64514,2743.4,2743.2,0.36703986]
[1740051974079,3.64514,2743.4,2743.2,0.84924785]
[1740051974215,3.64514,2743.4,2743.2,0.36703986]
[1740051974879,5.24,2743.7,2743.5,0.8301]
[1740051975362,5.24,2743.7,2743.6,0.10901654]
[1740051975363,6.64471,2743.7,2743.6,0.10901654]
[1740051976799,3.0,2743.7,2743.6,0.10901654]
[1740051977590,6.64471,2743.7,2743.6,0.10901654]
[1740051977791,3.0,2743.7,2743.6,0.10901654]
[1740051978096,6.64471,2743.7,2743.6,0.10901654]
[1740051978584,3.0,2743.7,2743.6,0.10901654]
[1740051978796,5.24,2744.2,2743.6,0.10901654]
[1740051978976,0.7796,2744.3,2743.6,0.10901654]
[1740051978977,9.66359,2744.3,2743.6,3.75382654]
[1740051979157,3.64424,2744.1,2743.7,0.45839265]
[1740051979540,3.64424,2744.1,2743.8,0.1083638]
[1740051979973,3.64438,2744.0,2743.7,0.45839265]
[1740051980157,3.64424,2744.1,2743.9,0.1083638]
[1740051980357,3.64424,2744.1,2744.0,0.258]
[1740051980676,3.64424,2744.1,2744.0,0.3663638]
[1740051982576,0.7796,2744.3,2744.0,4.0106438]
[1740051982877,3.64392,2744.3,2744.1,0.48137438]
[1740051983169,3.64392,2744.3,2744.0,0.3663638]
[1740051983391,6.64392,2744.3,2744.2,0.10811521]
[1740051983556,6.64392,2744.3,2744.0,0.258]
[1740051983735,6.64392,2744.3,2744.2,0.10811521]
[1740051983940,6.64392,2744.3,2744.0,0.258]
[1740051984457,3.0,2744.3,2744.1,0.10811521]
[1740051984658,3.64404,2744.2,2744.1,0.10811521]
[1740051987179,6.64399,2744.3,2744.1,0.10811521]
[1740051987678,3.64404,2744.2,2744.1,0.10811521]
[1740051988578,3.0,2744.3,2744.1,0.10811521]
[1740051988781,6.64391,2744.3,2744.1,0.10811521]
[1740051988941,3.64404,2744.2,2744.1,0.10811521]
[1740051990881,6.64391,2744.3,2744.1,0.10811521]
[1740051991549,3.64404,2744.2,2744.1,0.10811521]
[1740051992546,10.28795,2744.3,2744.1,0.10811521]
[1740051992990,6.64391,2744.3,2744.1,0.10811521]
[1740051994550,3.0,2744.3,2744.1,0.10811521]
[1740051994782,6.64392,2744.3,2744.1,0.10811521]
[1740051995580,3.0,2744.3,2744.1,0.10811521]
[1740051995945,0.7697,2744.6,2744.1,0.58947873]
[1740051996152,3.64366,2744.5,2744.1,4.23364873]
[1740051997789,3.64366,2744.5,2744.1,0.58947873]
[1740051997959,3.7697,2744.6,2744.1,4.23364873]
[1740051998166,3.64365,2744.5,2744.2,0.44916487]
[1740051998481,3.64365,2744.5,2744.3,0.10746273]
[1740051998687,7.41328,2744.6,2744.3,0.10746273]
[1740051998982,7.41328,2744.6,2744.0,0.258]
[1740051999186,3.64365,2744.5,2744.4,0.10746273]
[1740051999364,3.64365,2744.5,2744.3,0.8205]
[1740051999564,3.64365,2744.5,2744.4,0.10746273]
[1740051999986,3.0,2744.7,2744.4,0.10746273]
[1740052000189,3.64365,2744.5,2744.4,0.10746273]
[1740052008789,6.6434,2744.7,2744.4,0.10746273]
[1740052009302,0.813,2744.8,2744.4,0.10746273]
[1740052009505,3.64347,2744.7,2744.4,0.10746273]
[1740052010170,0.813,2744.8,2744.4,0.10746273]
[1740052010371,3.64338,2744.7,2744.4,0.10746273]
[1740052012291,3.64338,2744.7,2744.4,0.73053973]
[1740052012905,3.64328,2744.8,2744.4,0.73053973]
[1740052014473,3.64325,2744.8,2744.4,0.73053973]
[1740052014669,7.2866,2744.8,2744.4,0.73053973]
[1740052015203,3.68016633,2744.8,2744.4,0.73053973]
[1740052015397,7.28658,2744.8,2744.5,0.59333951]
[1740052015802,7.28658,2744.8,2744.6,0.10679543]
[1740052016619,3.0,2744.9,2744.6,0.10679543]
[1740052016974,3.64331,2744.8,2744.6,0.10679543]
[1740052017905,3.64338,2744.7,2744.6,0.10679543]
[1740052018292,3.64338,2744.7,2744.4,0.623077]
[1740052018489,3.64338,2744.7,2744.6,0.1029813]
[1740052018804,3.64338,2744.7,2744.5,0.21820424]
[1740052019012,3.64338,2744.7,2744.6,0.1029813]
[1740052020384,4.50299633,2744.7,2744.6,0.1029813]
[1740052020705,3.0,2744.6,2743.7,5.32]
[1740052020910,3.64444,2743.9,2743.8,1.68868]
[1740052021075,3.64444,2743.9,2743.8,0.3573034]
[1740052024335,3.64444,2743.9,2743.8,0.3573034]
[1740052029613,3.64444,2743.9,2743.8,0.0993034]
[1740052029995,3.64444,2743.9,2743.8,0.258]
[1740052030182,3.64444,2743.9,2743.8,0.35423315]
[1740052033916,3.64444,2743.9,2743.8,0.09623315]
[1740052034121,3.64444,2743.9,2743.8,0.35423315]
[1740052034325,3.64444,2743.9,2743.8,0.258]
[1740052034491,3.64444,2743.9,2743.8,0.35423315]
[1740052036307,3.64444,2743.9,2743.8,0.09623315]
[1740052036511,3.64444,2743.9,2743.8,0.35423315]
[1740052036824,3.64444,2743.9,2743.8,0.258]
[1740052037025,3.64444,2743.9,2743.8,0.35444251]
[1740052044442,3.64419,2744.1,2743.9,0.7622]
[1740052044808,3.64419,2744.1,2744.0,0.09655879]
[1740052045208,3.64404,2744.2,2744.0,0.09655879]
[1740052046358,8.884,2744.3,2744.0,0.09655879]
[1740052046543,3.64418,2744.1,2744.0,0.09655879]
[1740052047508,3.64439,2744.0,2743.8,0.258]
[1740052050413,3.64439,2744.0,2743.9,0.74052449]
[1740052051011,3.64418,2744.1,2743.9,0.74052449]
[1740052051214,7.28844,2744.1,2743.9,0.74052449]
[1740052051411,3.64431,2744.0,2743.9,0.74052449]
[1740052054559,3.64418,2744.1,2743.9,0.74052449]
[1740052055056,7.28848,2744.1,2743.9,0.74052449]
[1740052055353,0.799,2744.4,2743.9,0.74052449]
[1740052055354,3.64395,2744.3,2743.9,0.74052449]
[1740052055525,3.64381,2744.4,2744.0,0.794]
[1740052055725,3.64381,2744.4,2744.1,0.52153843]
[1740052057959,3.64381,2744.4,2744.0,0.794]
[1740052057960,3.64392,2744.3,2744.0,0.794]
[1740052059766,3.64392,2744.3,2744.1,0.09634172]
[1740052061251,3.64347,2744.7,2744.4,0.7721]
[1740052061466,3.64352,2744.6,2744.4,0.7721]
[1740052061763,3.64352,2744.6,2744.5,0.09597732]
[1740052068479,0.7981,2744.9,2744.5,3.73961732]
[1740052068683,6.64298,2745.0,2744.6,0.7807173]
[1740052068983,6.64319,2744.9,2744.7,0.09565951]
[1740052069551,3.64298,2745.0,2744.7,0.09565951]
[1740052069751,3.64325,2744.8,2744.7,0.09565951]
[1740052075761,3.64313,2744.9,2744.7,0.09565951]
[1740052075950,3.64299,2745.0,2744.7,0.09565951]
[1740052076150,3.64312,2744.9,2744.7,0.09565951]
[1740052076368,4.65867712,2745.2,2744.7,0.09565951]
[1740052076369,5.30149712,2745.2,2744.8,0.7554]
[1740052076650,3.64295,2745.1,2744.8,0.7554]
[1740052076852,6.64308,2745.0,2744.9,0.09565951]
[1740052078886,6.64306,2745.0,2744.6,1.0566]
[1740052079104,3.0,2745.0,2744.6,1.59816157]
[1740052079285,3.64312,2744.9,2744.6,1.59816157]
[1740052079606,3.64312,2744.9,2744.7,0.09540376]
[1740052080655,3.64325,2744.8,2744.7,0.09540376]
[1740052082131,3.64312,2744.9,2744.7,0.09540376]
[1740052083962,7.28633,2744.9,2744.7,0.09540376]
[1740052084296,3.64325,2744.8,2744.7,0.09540376]
[1740052085317,4.46305,2744.8,2744.7,0.09540376]
[1740052089288,4.46305,2744.8,2744.7,0.35340376]
[1740052098787,7.43512916,2744.8,2744.7,0.09540376]
[1740052098995,7.43519916,2744.8,2744.7,0.258]
[1740052099410,3.64414,2744.2,2744.0,0.8035]
[1740052099585,3.64418,2744.1,2743.9,8.186]
[1740052099798,3.64418,2744.1,2744.0,0.258]
[1740052101113,3.64418,2744.1,2744.0,1.17613117]
[1740052101689,3.64406,2744.2,2744.0,1.17613117]
[1740052102019,7.28822,2744.2,2744.0,1.17613117]
[1740052102221,3.64418,2744.1,2744.0,1.17613117]
[1740052103287,3.64418,2744.1,2744.0,0.258]
[1740052103521,3.64406,2744.2,2744.0,0.258]
[1740052104682,3.64406,2744.2,2744.1,0.08860443]
[1740052105920,3.64391,2744.4,2744.1,0.08860443]
[1740052106290,3.64395,2744.3,2744.1,0.08860443]
[1740052107423,3.64404,2744.2,2744.1,0.08860443]
[1740052109588,3.64391,2744.4,2744.1,0.08860443]
[1740052109985,3.64391,2744.4,2744.1,0.57004687]
[1740052114089,5.24,2744.7,2744.1,0.57004687]
[1740052114293,0.7973,2745.0,2744.5,4.42255]
[1740052114523,0.2708163,2745.1,2744.5,0.779]
[1740052114723,3.64308,2745.0,2744.6,0.08884429]
[1740052114936,3.64308,2745.0,2744.5,0.779]
[1740052115104,3.64315,2744.9,2744.7,0.08884429]
[1740052115304,3.64315,2744.9,2744.8,0.258]
[1740052115504,3.64307,2745.0,2744.8,0.34684429]
[1740052115922,4.40296,2745.4,2744.9,0.7979]
[1740052116407,4.40296,2745.4,2745.0,0.08884429]
[1740052116408,3.0,2745.3,2745.0,0.08884429]
[1740052117018,6.6426,2745.3,2745.0,0.08884429]
[1740052117526,3.64285,2745.2,2745.0,0.08884429]
[1740052118027,7.40306,2745.4,2745.0,0.08884429]
[1740052118239,3.7605,2745.4,2745.0,0.08884429]
[1740052119329,0.7781,2745.6,2745.0,0.08884429]
[1740052119538,3.64268,2745.3,2745.0,0.08884429]
[1740052119735,7.28536,2745.3,2745.0,0.08884429]
[1740052121011,3.64268,2745.3,2745.0,0.08884429]
[1740052121212,3.64272,2745.2,2745.0,0.08884429]
[1740052122430,3.64268,2745.3,2745.0,0.08884429]
[1740052123519,7.28536,2745.3,2745.0,0.08884429]
[1740052123837,3.64274,2745.2,2745.0,0.08884429]
[1740052126162,3.64272,2745.2,2745.0,0.08884429]
[1740052127863,3.64247,2745.4,2745.0,0.08884429]
[1740052128064,3.64265,2745.3,2745.0,0.57126058]
[1740052128345,3.64265,2745.3,2745.0,0.08884429]
[1740052130207,3.64275,2745.2,2745.0,0.08884429]
[1740052130747,3.64265,2745.3,2745.0,0.08884429]
[1740052130748,3.0,2745.3,2745.0,0.08884429]
[1740052130947,6.64271,2745.3,2745.0,0.08884429]
[1740052131107,3.64273,2745.2,2745.0,0.56763572]
[1740052131313,3.64273,2745.2,2745.0,0.08884429]
[1740052131508,5.24,2745.5,2745.0,0.08884429]
[1740052131714,5.24,2745.5,2745.3,0.822]
[1740052132115,5.24,2745.5,2745.4,0.08781532]
[1740052132844,8.88232,2745.5,2745.4,0.08781532]
[1740052135748,3.64232,2745.5,2745.4,0.08781532]
[1740052137875,4.42972,2745.5,2745.4,0.08781532]
[1740052138405,4.42972,2745.5,2745.2,0.71383506]
[1740052138406,3.64258,2745.3,2745.2,0.71383506]
[1740052138903,3.64247,2745.4,2745.0,0.7934]
[1740052139117,3.64279,2745.2,2745.0,0.469462]
[1740052139319,3.64279,2745.2,2744.8,1.0514]
[1740052139518,3.64296,2745.1,2744.9,0.258]
[1740052139702,3.64303,2745.0,2744.9,0.258]
[1740052141313,3.64303,2745.0,2744.8,0.7934]
[1740052141516,3.64303,2745.0,2744.9,0.258]
[1740052142236,3.64325,2744.8,2744.7,8.184]
[1740052142418,3.64325,2744.8,2744.7,8.442]
[1740052142620,3.64325,2744.8,2744.7,0.258]
[1740052143317,3.64294,2745.1,2744.7,0.258]
[1740052143516,0.8245,2745.2,2744.8,0.7883]
[1740052143718,5.24,2745.4,2744.9,3.643]
[1740052143719,6.0668,2745.4,2744.9,3.643]
[1740052145425,3.6426,2745.3,2744.9,3.643]
[1740052145622,3.6426,2745.3,2744.8,4.43154]
[1740052145801,7.28532,2745.3,2744.8,0.7883]
[1740052146007,7.28532,2745.3,2744.9,0.468967]
[1740052147623,3.6426,2745.3,2744.9,0.468967]
[1740052147797,3.64274,2745.2,2744.9,0.468967]
[1740052149815,3.64274,2745.2,2745.0,0.0852903]
[1740052152111,3.64285,2745.1,2745.0,0.0852903]
[1740052152733,4.45615,2745.1,2745.0,0.0852903]
[1740052152933,3.64325,2744.8,2744.7,0.258]
[1740052153290,3.64373,2744.5,2744.3,8.9818]
[1740052153489,3.64373,2744.5,2744.4,0.258]
[1740052155938,4.45632,2745.0,2744.4,1.25624996]
[1740052156143,3.64324,2744.9,2744.4,4.90000996]
[1740052156497,3.64325,2744.8,2744.4,4.90000996]
[1740052157987,3.64325,2744.8,2744.4,1.25624996]
[1740052158135,3.64325,2744.8,2744.5,0.27967495]
[1740052159187,7.28658,2744.8,2744.5,0.27967495]
[1740052159335,7.28662,2744.8,2744.5,0.27967495]
[1740052160579,3.6434,2744.7,2744.5,0.27967495]
[1740052160783,3.64351,2744.6,2744.4,0.258]
[1740052160992,3.64365,2744.5,2744.3,1.54049956]
[1740052161272,3.68056633,2744.5,2744.3,0.74269956]
[1740052161438,3.64378,2744.4,2744.3,0.74269956]
[1740052161638,3.64378,2744.4,2744.3,1.08614438]
[1740052162437,8.88354,2744.6,2744.3,1.27220882]
[1740052162754,5.24,2744.6,2744.4,0.8227]
[1740052163376,5.24,2744.6,2744.5,0.08544482]
[1740052165445,3.6434,2744.7,2744.5,0.08544482]
[1740052185524,7.28685,2744.7,2744.5,0.08544482]
[1740052186031,3.6434,2744.7,2744.5,0.08544482]
[1740052186792,5.24,2744.8,2744.5,0.08544482]
[1740052187061,8.88331,2744.8,2744.5,0.08544482]
[1740052188929,3.64342,2744.7,2744.5,0.08544482]
[1740052190435,8.88331,2744.8,2744.5,0.08544482]
[1740052190607,12.52668,2744.8,2744.5,0.08544482]
[1740052190928,8.88331,2744.8,2744.5,0.08544482]
[1740052198840,0.03691633,2744.7,2744.6,0.258]
[1740052199242,0.03691633,2744.7,2744.6,0.34368432]
[1740052199871,5.96518896,2744.7,2744.6,0.08568432]
[1740052200159,5.96518896,2744.7,2744.6,0.258]
[1740052200566,8.96518896,2744.7,2744.6,0.258]
[1740052200769,8.92827263,2744.7,2744.6,0.258]
[1740052201145,14.16827263,2744.7,2744.6,0.258]
[1740052201569,10.52489263,2744.7,2744.6,0.258]
[1740052201772,5.24,2744.7,2744.6,0.258]
[1740052201970,8.88338,2744.7,2744.6,0.258]
[1740052202374,5.24,2744.7,2744.6,0.34088992]
[1740052202937,0.7639,2745.3,2744.6,0.34088992]
[1740052203282,0.7639,2745.9,2745.1,2.47672594]
[1740052203466,0.7639,2745.9,2745.7,3.64197]
[1740052203781,0.7639,2745.9,2745.8,0.258]
[1740052203942,5.24,2746.0,2745.8,0.34081263]
[1740052204278,3.64179,2745.9,2745.8,0.34081263]
[1740052204575,3.6417,2746.0,2745.8,0.34081263]
[1740052204940,9.6648,2746.1,2745.8,0.34081263]
[1740052205138,3.64168,2746.0,2745.8,0.34081263]
[1740052205362,6.0232,2746.1,2745.8,0.34081263]
[1740052205561,3.64174,2746.0,2745.8,0.258]